fUSD/lending_fUSD_20240119
["ID","MTS","AMOUNT","RATE_DAILY","PERIOD"]
[312238302,1705697479925,-500.0,0.00026027,2]
[312238303,1705697479936,-500.0,0.00026027,2]
[312238304,1705697479947,-500.0,0.00026027,2]
[312238305,1705697479958,-500.0,0.00026027,2]
[312238306,1705697479968,-500.0,0.00026027,2]
[312238307,1705697479980,-500.0,0.00026027,2]
[312238308,1705697479991,-500.0,0.00026027,2]
[312238309,1705697480002,-557.49,0.00026027,2]
[312238310,1705697480014,-500.0,0.00026027,2]
[312238311,1705697480026,-500.0,0.00026027,2]
[312238312,1705697480037,-500.0,0.00026027,2]
[312238313,1705697480048,-500.0,0.00026027,2]
[312238314,1705697480059,-500.0,0.00026027,2]
[312238315,1705697480071,-1163.06,0.00026027,2]
[312238316,1705697480082,-500.0,0.00026027,2]
[312238317,1705697480094,-549.52,0.00026027,2]
[312238318,1705697480105,-500.0,0.00026027,2]
[312238319,1705697480116,-151.97303255,0.00026096,2]
[312238320,1705697480128,-286.13,0.0002613,2]
[312238321,1705697480138,-500.0,0.000262,2]
[312238322,1705697480149,-448.88050213,0.00026268,2]
[312238323,1705697480159,-204.0,0.00026286,7]
[312238324,1705697480170,-500.0,0.00026301,2]
[312238325,1705697480181,-700.31,0.00026301,2]
[312238326,1705697480192,-500.0,0.00026301,2]
[312238327,1705697480202,-500.0,0.00026301,2]
[312238328,1705697480213,-180.02,0.00026301,2]
[312238329,1705697480224,-635.32,0.00026301,2]
[312238330,1705697480235,-500.0,0.00026301,2]
[312238331,1705697480245,-500.0,0.00026301,2]
[312238332,1705697480255,-500.0,0.00026301,2]
[312238333,1705697480265,-500.0,0.00026301,2]
[312238334,1705697480276,-299.36,0.00026301,2]
[312238335,1705697480287,-391.28,0.00026301,2]
[312238336,1705697480297,-753.2,0.00026301,2]
[312238337,1705697480308,-550.69,0.00026301,2]
[312238338,1705697480318,-500.0,0.00026301,2]
[312238339,1705697480328,-928.07,0.00026301,2]
[312238340,1705697480339,-724.35,0.00026301,2]
[312238341,1705697480350,-500.0,0.00026301,2]
[312238342,1705697480360,-1497.12,0.00026301,2]
[312238343,1705697480371,-500.0,0.00026301,2]
[312238344,1705697480381,-835.85,0.00026301,2]
[312238345,1705697480392,-500.0,0.00026301,2]
[312238346,1705697480403,-500.0,0.00026301,2]
[312238347,1705697480413,-500.0,0.00026301,2]
[312238348,1705697480423,-1108.52,0.00026301,2]
[312238349,1705697480434,-500.0,0.00026301,2]
[312238350,1705697480444,-1439.14,0.00026301,2]
[312238351,1705697480455,-500.0,0.00026301,2]
[312238352,1705697480465,-500.0,0.00026301,2]
[312238353,1705697480476,-500.0,0.00026301,2]
[312238354,1705697480486,-597.97,0.00026301,2]
[312238355,1705697480497,-784.43,0.00026301,2]
[312238356,1705697480508,-500.0,0.00026301,2]
[312238357,1705697480518,-500.0,0.00026301,2]
[312238358,1705697480528,-500.0,0.00026301,2]
[312238359,1705697480539,-500.0,0.00026301,2]
[312238360,1705697480553,-500.0,0.00026301,2]
[312238361,1705697480565,-500.0,0.00026301,2]
[312238362,1705697480752,-500.0,0.00026301,2]
[312238363,1705697480763,-500.0,0.00026301,2]
[312238364,1705697480773,-364.63,0.00026301,2]
[312238365,1705697480783,-500.0,0.00026301,2]
[312238366,1705697480793,-500.0,0.00026301,2]
[312238367,1705697480803,-500.0,0.00026301,2]
[312238368,1705697480814,-500.0,0.00026301,2]
[312238369,1705697480824,-1163.06,0.00026301,2]
[312238370,1705697480834,-500.0,0.00026301,2]
[312238371,1705697480843,-500.0,0.00026301,2]
[312238372,1705697480854,-290.48,0.00026307,2]
[312238373,1705697480863,-173.24,0.00026385,2]
[312238374,1705697480872,-500.0,0.00026474,2]
[312238375,1705697480882,-151.97303255,0.00026481,2]
[312238376,1705697480892,-208.5,0.00026575,2]
[312238377,1705697480901,-700.31,0.00026575,2]
[312238378,1705697480911,-537.79,0.00026575,2]
[312238379,1705697480921,-500.0,0.00026575,2]
[312238380,1705697480931,-523.24,0.00026575,2]
[312238381,1705697480942,-500.0,0.00026575,2]
[312238382,1705697480952,-500.0,0.00026575,2]
[312238383,1705697480962,-500.0,0.00026575,2]
[312238384,1705697480972,-753.2,0.00026575,2]
[312238385,1705697480982,-500.0,0.00026575,2]
[312238386,1705697480991,-928.07,0.00026575,2]
[312238387,1705697481002,-724.35,0.00026575,2]
[312238388,1705697481012,-500.0,0.00026575,2]
[312238389,1705697481022,-1497.12,0.00026575,2]
[312238390,1705697481033,-500.0,0.00026575,2]
[312238391,1705697481043,-835.85,0.00026575,2]
[312238392,1705697481053,-244.16,0.00026575,2]
[312238393,1705697481063,-194.72,0.00026575,2]
[312238394,1705697481073,-389.25,0.00026575,2]
[312238395,1705697481083,-1108.52,0.00026575,2]
[312238396,1705697481094,-500.0,0.00026575,2]
[312238397,1705697481105,-1439.14,0.00026575,2]
[312238398,1705697481114,-500.0,0.00026575,2]
[312238399,1705697481125,-500.0,0.00026575,2]
[312238400,1705697481136,-509.2,0.00026575,2]
[312238401,1705697481147,-784.43,0.00026575,2]
[312238402,1705697481157,-500.0,0.00026575,2]
[312238403,1705697481167,-500.0,0.00026575,2]
[312238404,1705697481178,-500.0,0.00026575,2]
[312238405,1705697481188,-500.0,0.00026575,2]
[312238406,1705697481198,-500.0,0.00026575,2]
[312238407,1705697481208,-500.0,0.00026575,2]
[312238408,1705697481217,-500.0,0.00026575,2]
[312238409,1705697481227,-500.0,0.00026575,2]
[312238410,1705697481237,-500.0,0.00026575,2]
[312238411,1705697481247,-500.0,0.00026575,2]
[312238412,1705697481257,-500.0,0.00026575,2]
[312238413,1705697481267,-500.0,0.00026575,2]
[312238414,1705697481276,-1163.06,0.00026575,2]
[312238415,1705697481286,-320.84,0.00026575,2]
[312238416,1705697481296,-500.0,0.00026575,2]
[312238417,1705697481306,-13849.95,0.00026575,2]
[312238418,1705697481317,-162.9,0.00026575,2]
[312238419,1705697481327,-1971.96984202,0.0002658,2]
[312238420,1705697481337,-167.0,0.00026584,2]
[312238421,1705697481347,-157.33,0.00026639,2]
[312238422,1705697481357,-500.0,0.00026748,2]
[312238423,1705697481366,-209.0,0.00026749,2]
[312238424,1705697481376,-1000.0,0.00026808,2]
[312238425,1705697481386,-322.90099813,0.00026808,2]
[312238426,1705697481396,-700.31,0.00026849,2]
[312238427,1705697481407,-500.0,0.00026849,2]
[312238428,1705697481417,-500.0,0.00026849,2]
[312238429,1705697481427,-500.0,0.00026849,2]
[312238430,1705697481437,-514.38537219,0.00026849,2]
[312238431,1705697481447,-753.2,0.00026849,2]
[312238432,1705697481458,-500.0,0.00026849,2]
[312238433,1705697481468,-928.07,0.00026849,2]
[312238434,1705697481478,-724.35,0.00026849,2]
[312238435,1705697481488,-500.0,0.00026849,2]
[312238436,1705697481498,-1497.12,0.00026849,2]
[312238437,1705697481509,-500.0,0.00026849,2]
[312238438,1705697481519,-835.85,0.00026849,2]
[312238439,1705697481529,-1108.52,0.00026849,2]
[312238440,1705697481539,-500.0,0.00026849,2]
[312238441,1705697481549,-1439.14,0.00026849,2]
[312238442,1705697481559,-500.0,0.00026849,2]
[312238443,1705697481569,-500.0,0.00026849,2]
[312238444,1705697481581,-784.43,0.00026849,2]
[312238445,1705697481591,-500.0,0.00026849,2]
[312238446,1705697481601,-500.0,0.00026849,2]
[312238447,1705697481611,-500.0,0.00026849,2]
[312238448,1705697481622,-500.0,0.00026849,2]
[312238449,1705697481632,-171.42,0.00026849,2]
[312238450,1705697481642,-500.0,0.00026849,2]
[312238451,1705697481652,-500.0,0.00026849,2]
[312238452,1705697481663,-500.0,0.00026849,2]
[312238453,1705697481672,-325.61,0.00026849,2]
[312238454,1705697481683,-500.0,0.00026849,2]
[312238455,1705697481694,-500.0,0.00026849,2]
[312238456,1705697481704,-500.0,0.00026849,2]
[312238457,1705697481714,-1163.06,0.00026849,2]
[312238458,1705697481723,-500.0,0.00026849,2]
[312238459,1705697481734,-151.97303255,0.00026866,2]
[312238460,1705697481744,-438.0082,0.00026941,2]
[312238461,1705697481754,-176.39,0.00026996,2]
[312238462,1705697481764,-5000.0,0.00027,2]
[312238463,1705697481774,-416.19937194,0.00027,2]
[312238464,1705697481784,-155.0,0.00027,2]
[312238465,1705697481794,-500.0,0.00027,2]
[312238466,1705697481804,-500.0,0.00027,2]
[312238467,1705697481814,-500.0,0.00027,2]
[312238468,1705697481824,-500.0,0.00027,2]
[312238469,1705697481835,-500.0,0.00027,2]
[312238470,1705697481845,-500.0,0.00027,2]
[312238471,1705697481856,-500.0,0.00027,2]
[312238472,1705697481866,-500.0,0.00027,2]
[312238473,1705697481876,-500.0,0.00027,2]
[312238474,1705697481887,-500.0,0.00027,2]
[312238475,1705697481898,-500.0,0.00027,2]
[312238476,1705697481908,-500.0,0.00027,2]
[312238477,1705697481918,-500.0,0.00027,2]
[312238478,1705697481929,-500.0,0.00027,2]
[312238479,1705697481939,-500.0,0.00027,2]
[312238480,1705697481949,-500.0,0.00027,2]
[312238481,1705697481960,-500.0,0.00027,2]
[312238482,1705697481970,-500.0,0.00027,2]
[312238483,1705697481980,-500.0,0.00027,2]
[312238484,1705697481991,-500.0,0.00027,2]
[312238485,1705697482001,-500.0,0.00027,2]
[312238486,1705697482011,-173.24,0.00027018,2]
[312238487,1705697482021,-500.0,0.00027022,2]
[312238488,1705697482031,-195.20904222,0.00027023,2]
[312238489,1705697482041,-14893.07877359,0.00027041,3]
[312238490,1705697482051,-1000.0,0.00027041,3]
[312238491,1705697482061,-3122.05738811,0.00027041,3]
[312238492,1705697482072,-1707.33268135,0.00027041,3]
[312238493,1705697482082,-1000.0,0.00027041,3]
[312238494,1705697482091,-448.62645283,0.00027041,3]
[312238495,1705697482101,-1000.0,0.00027041,3]
[312238496,1705697482112,-1000.0,0.00027041,3]
[312238497,1705697482121,-500.0,0.00027041,3]
[312238498,1705697482132,-229.72433715,0.00027041,3]
[312238499,1705697482141,-1000.0,0.00027041,3]
[312238500,1705697482151,-700.31,0.00027123,2]
[312238501,1705697482161,-500.0,0.00027123,2]
[312238502,1705697482171,-500.0,0.00027123,2]
[312238503,1705697482181,-500.0,0.00027123,2]
[312238504,1705697482191,-753.2,0.00027123,2]
[312238505,1705697482200,-500.0,0.00027123,2]
[312238506,1705697482210,-928.07,0.00027123,2]
[312238507,1705697482220,-724.35,0.00027123,2]
[312238508,1705697482229,-500.0,0.00027123,2]
[312238509,1705697482239,-1497.12,0.00027123,2]
[312238510,1705697482249,-500.0,0.00027123,2]
[312238511,1705697482260,-835.85,0.00027123,2]
[312238512,1705697482270,-1108.52,0.00027123,2]
[312238513,1705697482279,-649.20511834,0.00027123,2]
[312238514,1705697482289,-1439.14,0.00027123,2]
[312238515,1705697482299,-277.48,0.00027123,2]
[312238516,1705697482308,-500.0,0.00027123,2]
[312238517,1705697482317,-784.43,0.00027123,2]
[312238518,1705697482327,-500.0,0.00027123,2]
[312238519,1705697482337,-500.0,0.00027123,2]
[312238520,1705697482346,-500.0,0.00027123,2]
[312238521,1705697482356,-461.32,0.00027123,2]
[312238522,1705697482366,-500.0,0.00027123,2]
[312238523,1705697482376,-500.0,0.00027123,2]
[312238524,1705697482385,-500.0,0.00027123,2]
[312238525,1705697482394,-500.0,0.00027123,2]
[312238526,1705697482404,-500.0,0.00027123,2]
[312238527,1705697482413,-500.0,0.00027123,2]
[312238528,1705697482423,-1163.06,0.00027123,2]
[312238529,1705697482432,-500.0,0.00027123,2]
[312238530,1705697482441,-2547.3192983,0.000272,2]
[312238531,1705697482450,-151.97303255,0.00027251,2]
[312238532,1705697482461,-290.48,0.00027285,2]
[312238533,1705697482470,-500.0,0.00027296,2]
[312238534,1705697482480,-500.0,0.00027397,2]
[312238535,1705697482489,-155.0,0.00027397,2]
[312238536,1705697482499,-700.31,0.00027397,2]
[312238537,1705697482508,-500.0,0.00027397,2]
[312238538,1705697482517,-500.0,0.00027397,2]
[312238539,1705697482527,-500.0,0.00027397,2]
[312238540,1705697482536,-753.2,0.00027397,2]
[312238541,1705697482545,-1042.35,0.00027397,2]
[312238542,1705697482558,-2000.0,0.00027397,7]
[312238543,1705697482568,-500.0,0.00027397,2]
[312238544,1705697482577,-928.07,0.00027397,2]
[312238545,1705697482586,-724.35,0.00027397,2]
[312238546,1705697482595,-500.0,0.00027397,2]
[312238547,1705697482606,-1497.12,0.00027397,2]
[312238548,1705697482626,-500.0,0.00027397,2]
[312238549,1705697482638,-835.85,0.00027397,2]
[312238550,1705697482649,-1108.52,0.00027397,2]
[312238551,1705697482659,-1439.14,0.00027397,2]
[312238552,1705697482669,-500.0,0.00027397,2]
[312238553,1705697482679,-784.43,0.00027397,2]
[312238554,1705697482688,-649.24,0.00027397,2]
[312238555,1705697482699,-500.0,0.00027397,2]
[312238556,1705697482710,-432.72,0.00027397,2]
[312238557,1705697482719,-500.0,0.00027397,2]
[312238558,1705697482729,-500.0,0.00027397,2]
[312238559,1705697482738,-457.6,0.00027397,2]
[312238560,1705697482748,-336.71492477,0.00027397,2]
[312238561,1705697482759,-500.0,0.00027397,2]
[312238562,1705697482769,-500.0,0.00027397,2]
[312238563,1705697482779,-1163.06,0.00027397,2]
[312238564,1705697482789,-157.9,0.00027397,2]
[312238565,1705697482799,-156.25,0.00027397,2]
[312238566,1705697482808,-167.0,0.00027407,2]
[312238567,1705697482819,-210.34172394,0.00027441,3]
[312238568,1705697482829,-1079.8482368,0.00027441,3]
[312238569,1705697482839,-1971.96984202,0.00027504,2]
[312238570,1705697482848,-150.0,0.00027545,2]
[312238571,1705697482858,-253.86,0.0002757,2]
[312238572,1705697482868,-151.97303255,0.00027636,2]
[312238573,1705697482877,-173.24,0.00027651,2]
[312238574,1705697482887,-151.0,0.00027671,7]
[312238575,1705697482897,-700.31,0.00027671,2]
[312238576,1705697482907,-500.0,0.00027671,2]
[312238577,1705697482917,-500.0,0.00027671,2]
[312238578,1705697482927,-500.0,0.00027671,2]
[312238579,1705697482938,-753.2,0.00027671,2]
[312238580,1705697482949,-500.0,0.00027671,2]
[312238581,1705697482961,-928.07,0.00027671,2]
[312238582,1705697482975,-724.35,0.00027671,2]
[312238583,1705697482986,-500.0,0.00027671,2]
[312238584,1705697482996,-1497.12,0.00027671,2]
[312238585,1705697483007,-500.0,0.00027671,2]
[312238586,1705697483017,-835.85,0.00027671,2]
[312238587,1705697483027,-1108.52,0.00027671,2]
[312238588,1705697483037,-1439.14,0.00027671,2]
[312238589,1705697483048,-324.24,0.00027671,2]
[312238590,1705697483058,-784.43,0.00027671,2]
[312238591,1705697483068,-500.0,0.00027671,2]
[312238592,1705697483078,-499.52,0.00027671,2]
[312238593,1705697483087,-500.0,0.00027671,2]
[312238594,1705697483097,-500.0,0.00027671,2]
[312238595,1705697483107,-500.0,0.00027671,2]
[312238596,1705697483117,-1163.06,0.00027671,2]
[312238597,1705697483126,-157.33,0.00027737,2]
[312238598,1705697483135,-700.31,0.00027945,2]
[312238599,1705697483144,-500.0,0.00027945,2]
[312238600,1705697483154,-500.0,0.00027945,2]
[312238601,1705697483164,-500.0,0.00027945,2]
[312238602,1705697483174,-753.2,0.00027945,2]
[312238603,1705697483184,-500.0,0.00027945,2]
[312238604,1705697483194,-928.07,0.00027945,2]
[312238605,1705697483204,-724.35,0.00027945,2]
[312238606,1705697483214,-500.0,0.00027945,2]
[312238607,1705697483224,-1497.12,0.00027945,2]
[312238608,1705697483234,-500.0,0.00027945,2]
[312238609,1705697483244,-835.85,0.00027945,2]
[312238610,1705697483253,-1108.52,0.00027945,2]
[312238611,1705697483263,-1439.14,0.00027945,2]
[312238612,1705697483272,-784.43,0.00027945,2]
[312238613,1705697483282,-500.0,0.00027945,2]
[312238614,1705697483291,-500.0,0.00027945,2]
[312238615,1705697483301,-500.0,0.00027945,2]
[312238616,1705697483310,-500.0,0.00027945,2]
[312238617,1705697483320,-1163.06,0.00027945,2]
[312238618,1705697483329,-272.37,0.00027978,2]
[312238619,1705697483338,-688.92857397,0.00028,2]
[312238620,1705697483347,-203.09146154,0.00028,2]
[312238621,1705697483357,-1400.0,0.00028,3]
[312238622,1705697483367,-200.0,0.00028,2]
[312238623,1705697483377,-151.97303255,0.00028021,2]
[312238624,1705697483386,-176.39,0.00028025,2]
[312238625,1705697483396,-448.88050213,0.00028079,2]
[312238626,1705697483405,-500.0,0.00028088,2]
[312238627,1705697483415,-328.06234613,0.00028139,14]
[312238628,1705697483425,-588.0,0.0002816,5]
[312238629,1705697483436,-200.0,0.00028219,2]
[312238630,1705697483446,-155.0,0.00028219,2]
[312238631,1705697483463,-508.90507024,0.00028219,2]
[312238632,1705697483479,-623.61635149,0.00028219,2]
[312238633,1705697483489,-700.31,0.00028219,2]
[312238634,1705697483498,-289.44,0.00028219,2]
[312238635,1705697483508,-330.45,0.00028219,2]
[312238636,1705697483518,-500.0,0.00028219,2]
[312238637,1705697483527,-753.2,0.00028219,2]
[312238638,1705697483537,-341.73,0.00028219,2]
[312238639,1705697483547,-928.07,0.00028219,2]
[312238640,1705697483557,-724.35,0.00028219,2]
[312238641,1705697483571,-500.0,0.00028219,2]
[312238642,1705697483581,-1497.12,0.00028219,2]
[312238643,1705697483591,-500.0,0.00028219,2]
[312238644,1705697483602,-835.85,0.00028219,2]
[312238645,1705697483614,-1108.52,0.00028219,2]
[312238646,1705697483624,-1439.14,0.00028219,2]
[312238647,1705697483634,-784.43,0.00028219,2]
[312238648,1705697483645,-500.0,0.00028219,2]
[312238649,1705697483655,-500.0,0.00028219,2]
[312238650,1705697483664,-500.0,0.00028219,2]
[312238651,1705697483674,-500.0,0.00028219,2]
[312238652,1705697483686,-1163.06,0.00028219,2]
[312238653,1705697483696,-167.0,0.0002823,2]
[312238654,1705697483705,-290.48,0.00028264,2]
[312238655,1705697483715,-173.24,0.00028284,2]
[312238656,1705697483725,-151.97303255,0.00028406,2]
[312238657,1705697483735,-1971.96984202,0.00028429,2]
[312238658,1705697483745,-700.31,0.00028493,2]
[312238659,1705697483755,-500.0,0.00028493,2]
[312238660,1705697483765,-753.2,0.00028493,2]
[312238661,1705697483775,-928.07,0.00028493,2]
[312238662,1705697483785,-724.35,0.00028493,2]
[312238663,1705697483794,-500.0,0.00028493,2]
[312238664,1705697483804,-1497.12,0.00028493,2]
[312238665,1705697483814,-500.0,0.00028493,2]
[312238666,1705697483824,-835.85,0.00028493,2]
[312238667,1705697483834,-1108.52,0.00028493,2]
[312238668,1705697483844,-1439.14,0.00028493,2]
[312238669,1705697483853,-784.43,0.00028493,2]
[312238670,1705697483863,-434.44,0.00028493,2]
[312238671,1705697483873,-637.28,0.00028493,2]
[312238672,1705697483883,-500.0,0.00028493,2]
[312238673,1705697483892,-276.78996896,0.00028493,2]
[312238674,1705697483902,-1163.06,0.00028493,2]
[312238675,1705697483912,-204.11287,0.00028588,3]
[312238676,1705697483923,-155.0,0.00028767,2]
[312238677,1705697483934,-700.31,0.00028767,2]
[312238678,1705697483944,-500.0,0.00028767,2]
[312238679,1705697483955,-753.2,0.00028767,2]
[312238680,1705697483965,-1042.35,0.00028767,2]
[312238681,1705697483975,-928.07,0.00028767,2]
[312238682,1705697483985,-724.35,0.00028767,2]
[312238683,1705697483995,-500.0,0.00028767,2]
[312238684,1705697484003,-1497.12,0.00028767,2]
[312238685,1705697484013,-500.0,0.00028767,2]
[312238686,1705697484023,-835.85,0.00028767,2]
[312238687,1705697484033,-1108.52,0.00028767,2]
[312238688,1705697484043,-1439.14,0.00028767,2]
[312238689,1705697484053,-784.43,0.00028767,2]
[312238690,1705697484063,-470.15,0.00028767,2]
[312238691,1705697484073,-1000.0,0.00028767,2]
[312238692,1705697484083,-1000.0,0.00028767,2]
[312238693,1705697484093,-1000.0,0.00028767,2]
[312238694,1705697484104,-1000.0,0.00028767,2]
[312238695,1705697484114,-1163.06,0.00028767,2]
[312238696,1705697484124,-1000.0,0.00028767,2]
[312238697,1705697484133,-151.0,0.00028767,7]
[312238698,1705697484147,-151.0,0.00028767,7]
[312238699,1705697484157,-151.97303255,0.0002879,2]
[312238700,1705697484167,-1000.0,0.00028839,2]
[312238701,1705697484177,-173.24,0.00028918,2]
[312238702,1705697484190,-210.34172394,0.00028933,4]
[312238703,1705697484200,-1079.8482368,0.00028933,4]
[312238704,1705697484209,-211.00410547,0.00029,2]
[312238705,1705697484219,-176.33,0.00029,2]
[312238706,1705697484229,-700.31,0.00029041,2]
[312238707,1705697484461,-500.0,0.00029041,2]
[312238708,1705697484471,-753.2,0.00029041,2]
[312238709,1705697484480,-928.07,0.00029041,2]
[312238710,1705697484490,-724.35,0.00029041,2]
[312238711,1705697484500,-500.0,0.00029041,2]
[312238712,1705697484515,-1497.12,0.00029041,2]
[312238713,1705697484532,-500.0,0.00029041,2]
[312238714,1705697484542,-835.85,0.00029041,2]
[312238715,1705697484554,-1108.52,0.00029041,2]
[312238716,1705697484565,-1439.14,0.00029041,2]
[312238717,1705697484574,-784.43,0.00029041,2]
[312238718,1705697484584,-1163.06,0.00029041,2]
[312238719,1705697484593,-167.0,0.00029054,2]
[312238720,1705697484611,-176.39,0.00029054,2]
[312238721,1705697484626,-156.25,0.0002911,2]
[312238722,1705697484637,-151.97303255,0.00029175,2]
[312238723,1705697484647,-290.48,0.00029242,2]
[312238724,1705697484656,-700.31,0.00029315,2]
[312238725,1705697484666,-189.50016737,0.00029315,2]
[312238726,1705697484676,-753.2,0.00029315,2]
[312238727,1705697484686,-928.07,0.00029315,2]
[312238728,1705697484695,-724.35,0.00029315,2]
[312238729,1705697484705,-500.0,0.00029315,2]
[312238730,1705697484715,-1497.12,0.00029315,2]
[312238731,1705697484724,-500.0,0.00029315,2]
[312238732,1705697484734,-835.85,0.00029315,2]
[312238733,1705697484744,-1108.52,0.00029315,2]
[312238734,1705697484754,-1439.14,0.00029315,2]
[312238735,1705697484763,-784.43,0.00029315,2]
[312238736,1705697484773,-1163.06,0.00029315,2]
[312238737,1705697484783,-1971.96984202,0.00029353,2]
[312238738,1705697484792,-500.0,0.00029371,2]
[312238739,1705697484801,-155.0,0.000295,3]
[312238740,1705697484812,-352.4,0.00029548,2]
[312238741,1705697484821,-173.24,0.00029551,2]
[312238742,1705697484831,-151.97303255,0.0002956,2]
[312238743,1705697484841,-700.31,0.00029589,2]
[312238744,1705697484851,-753.2,0.00029589,2]
[312238745,1705697484860,-928.07,0.00029589,2]
[312238746,1705697484870,-724.35,0.00029589,2]
[312238747,1705697484879,-592.34,0.00029589,2]
[312238748,1705697484889,-1497.12,0.00029589,2]
[312238749,1705697484898,-272.03999999,0.00029589,2]
[312238750,1705697484908,-835.85,0.00029589,2]
[312238751,1705697484918,-1108.52,0.00029589,2]
[312238752,1705697484928,-1439.14,0.00029589,2]
[312238753,1705697484938,-784.43,0.00029589,2]
[312238754,1705697484947,-1163.06,0.00029589,2]
[312238755,1705697484958,-4908.32082205,0.000297,2]
[312238756,1705697484968,-617.41792244,0.00029759,2]
[312238757,1705697484978,-5253.23132654,0.00029759,2]
[312238758,1705697484987,-178.13967445,0.00029759,2]
[312238759,1705697484997,-16386.34304254,0.0002976,2]
[312238760,1705697485007,-4307.97641487,0.00029761,2]
[312238761,1705697485017,-175.53477605,0.000298,2]
[312238762,1705697485026,-731.00118582,0.000298,2]
[312238763,1705697485035,-151.0,0.00029802,7]
[312238764,1705697485045,-700.31,0.00029863,2]
[312238765,1705697485054,-753.2,0.00029863,2]
[312238766,1705697485064,-928.07,0.00029863,2]
[312238767,1705697485073,-724.35,0.00029863,2]
[312238768,1705697485083,-1497.12,0.00029863,2]
[312238769,1705697485093,-835.85,0.00029863,2]
[312238770,1705697485102,-1108.52,0.00029863,2]
[312238771,1705697485112,-1439.14,0.00029863,2]
[312238772,1705697485121,-784.43,0.00029863,2]
[312238773,1705697485130,-1163.06,0.00029863,2]
[312238774,1705697485140,-448.88050213,0.00029889,2]
[312238775,1705697485149,-1000.0,0.000299,2]
[312238776,1705697485159,-500.0,0.000299,2]
[312238777,1705697485169,-151.97303255,0.00029945,2]
[312238778,1705697485179,-151.0,0.00029999,7]
[312238779,1705697485189,-437.763972,0.00029999,7]
[312238780,1705697485198,-437.763972,0.00029999,7]
[312238781,1705697485207,-500.0,0.00029999,2]
[312238782,1705697485217,-500.0,0.00029999,2]
[312238783,1705697485227,-500.0,0.00029999,2]
[312238784,1705697485236,-500.0,0.00029999,2]
[312238785,1705697485244,-1000.0,0.00029999,2]
[312238786,1705697485253,-1000.0,0.00029999,2]
[312238787,1705697485262,-308924.89142697,0.0003,4]
[312238788,1705697485271,-155.0,0.0003,2]
[312238789,1705697485281,-582.6484227,0.0003,2]
[312238790,1705697485290,-6568.03851515,0.0003,4]
[312238791,1705697485300,-5362.63726546,0.0003,4]
[312238792,1705697485310,-1806.73038291,0.0003,4]
[312238793,1705697485319,-600.31148075,0.0003,4]
[312238794,1705697485329,-1786.81768684,0.0003,4]
[312238795,1705697485338,-905.6449554,0.0003,4]
[312238796,1705697485348,-9639.56910486,0.0003,2]
[312238797,1705697485358,-1573.00938354,0.0003,2]
[312238798,1705697485368,-58514.90112179,0.0003,4]
[312238799,1705697485377,-2553.5624407,0.0003,4]
[312238800,1705697485387,-691.92895757,0.0003,2]
[312238801,1705697485397,-10860.0,0.0003,5]